{"text_format":"1","workbook":"xlsx","n_sheets":8,"sheets":["Menu","Colab","Criterios","Aval","Dash1","Dash2","Instruções","Notas"],"not_rendered":{"charts":4,"images":11,"macros":1,"external_links":0,"defined_names":8,"comments":0,"pivot_tables":0},"unopened":[],"bounds":{"document_bytes":16777216,"sheet_cells":100000,"rows_first":2000,"rows_last":500,"rows_between":2000,"halvings":0,"cell_chars":16384,"cell_head_chars":4096},"cells_cut":0,"cells_raw":0,"read":"whole","date_system":"1900"}

{"sheet":"Menu","index":0,"n_rows":26,"n_cols":7,"rows_kept":26,"cut":false,"hidden":false,"merged":[[25,4,25,5],[25,6,25,14]]}
[]
[]
[]
[]
[]
[]
[]
[]
[]
[]
[]
[]
[]
[]
[]
[]
[]
[]
[]
[]
[]
[]
[]
[]
[]
[null,null,null,null,"Empresa:",null,"Empresa ABCDE"]

{"sheet":"Colab","index":1,"n_rows":16,"n_cols":4,"rows_kept":16,"cut":false,"hidden":false,"merged":[[9,2,9,3],[11,1,11,3]]}
[]
[]
[]
[]
[]
[]
[]
[]
[]
[null,"Empresa:",{"$f":"Menu!G26","v":"Empresa ABCDE"}]
[]
[null,"CADASTRO DE COLABORADORES\nInsira os dados dos seus colaboradores."]
[null,"Colaborador","Área","Cargo"]
[null,"José da Silva","Administrativo","Assistente Administrativo"]
[null,"João Alves","Produção","Auxiliar de PCP"]
[null,"Paulo Vitor","Almoxarifado","Aumoxarife"]

{"sheet":"Criterios","index":2,"n_rows":23,"n_cols":3,"rows_kept":23,"cut":false,"hidden":false,"merged":[[15,1,15,3],[9,2,9,3],[11,1,11,3],[12,1,12,3],[13,1,13,3],[14,1,14,3],[22,1,22,3],[16,1,16,3],[17,1,17,3],[18,1,18,3],[19,1,19,3],[20,1,20,3],[21,1,21,3]]}
[]
[]
[]
[]
[]
[]
[]
[]
[]
[null,"Empresa:",{"$f":"Menu!G26","v":"Empresa ABCDE"}]
[]
[null,"CADASTRO DE CRITÉRIOS\nInsira os critérios necessários para sua empresa."]
[null,"Critérios"]
[null,"Liderança"]
[null,"Assiduidade"]
[null,"Flexibilidade"]
[null,"Disponibilidade"]
[null,"Integração"]
[null,"Organização"]
[null,"Ética"]
[null,"Produtividade"]
[null,"Qualidade"]
[null,"Aptidão Técnica"]

{"sheet":"Aval","index":3,"n_rows":65,"n_cols":19,"rows_kept":65,"cut":false,"hidden":false,"merged":[[11,1,11,11],[9,2,9,6]]}
[]
[]
[]
[]
[]
[]
[]
[]
[]
[null,"Empresa:",{"$f":"Menu!G26","v":"Empresa ABCDE"}]
[]
[null,"AVALIAÇÃO DE DESEMPENHO\nInsira a nota que mais relaciona o colaborador com o critério. Numa escala de 1 a 5, conforme tabela ao lado."]
[null,"Colaborador",{"$f":"TRANSPOSE(Criterios!B14:B23)","v":"Liderança"},"Assiduidade","Flexibilidade","Disponibilidade","Integração","Organização","Ética","Produtividade","Qualidade","Aptidão Técnica","Média Geral","Pontos a Melhorar/Desenvolver","Nota Geral do Ano Anterior",null,null,null,"Média"]
[null,{"$f":"Colab!B14","v":"José da Silva"},3,4,4,4,5,4,4,4,4,5,{"$f":"IFERROR(AVERAGE(C14:L14),\"\")","v":4.0999999999999996},null,3.5,null,null,null,{"$f":"IFERROR(AVERAGEIF(C14:L14,\">0\"),\"\")","v":4.0999999999999996}]
[null,{"$f":"Colab!B15","v":"João Alves"},3,3,3,3,3,3,5,5,5,5,{"$f":"IFERROR(AVERAGE(C15:L15),\"\")","v":3.8},null,4,null,null,null,{"$f":"IFERROR(AVERAGEIF(C15:L15,\">0\"),\"\")","v":3.8}]
[null,{"$f":"Colab!B16","v":"Paulo Vitor"},2,2,2,1,5,2,4,4,3,3,2.8,null,3,null,null,null,2.8]
[null,{"$f":"Colab!B17","v":0},null,null,null,null,null,null,null,null,null,null,"",null,null,null,null,null,""]
[null,{"$f":"Colab!B18","v":0},null,null,null,null,null,null,null,null,null,null,"",null,null,null,null,null,""]
[null,{"$f":"Colab!B19","v":0},null,null,null,null,null,null,null,null,null,null,"",null,null,null,null,null,""]
[null,{"$f":"Colab!B20","v":0},null,null,null,null,null,null,null,null,null,null,"",null,null,null,null,null,""]
[null,{"$f":"Colab!B21","v":0},null,null,null,null,null,null,null,null,null,null,"",null,null,null,null,null,""]
[null,{"$f":"Colab!B22","v":0},null,null,null,null,null,null,null,null,null,null,"",null,null,null,null,null,""]
[null,{"$f":"Colab!B23","v":0},null,null,null,null,null,null,null,null,null,null,"",null,null,null,null,null,""]
[null,{"$f":"Colab!B24","v":0},null,null,null,null,null,null,null,null,null,null,"",null,null,null,null,null,""]
[null,{"$f":"Colab!B25","v":0},null,null,null,null,null,null,null,null,null,null,"",null,null,null,null,null,""]
[null,{"$f":"Colab!B26","v":0},null,null,null,null,null,null,null,null,null,null,"",null,null,null,null,null,""]
[null,{"$f":"Colab!B27","v":0},null,null,null,null,null,null,null,null,null,null,"",null,null,null,null,null,""]
[null,{"$f":"Colab!B28","v":0},null,null,null,null,null,null,null,null,null,null,"",null,null,null,null,null,""]
[null,{"$f":"Colab!B29","v":0},null,null,null,null,null,null,null,null,null,null,"",null,null,null,null,null,""]
[null,{"$f":"Colab!B30","v":0},null,null,null,null,null,null,null,null,null,null,"",null,null,null,null,null,""]
[null,{"$f":"Colab!B31","v":0},null,null,null,null,null,null,null,null,null,null,"",null,null,null,null,null,""]
[null,{"$f":"Colab!B32","v":0},null,null,null,null,null,null,null,null,null,null,"",null,null,null,null,null,""]
[null,{"$f":"Colab!B33","v":0},null,null,null,null,null,null,null,null,null,null,"",null,null,null,null,null,""]
[null,{"$f":"Colab!B34","v":0},null,null,null,null,null,null,null,null,null,null,"",null,null,null,null,null,""]
[null,{"$f":"Colab!B35","v":0},null,null,null,null,null,null,null,null,null,null,"",null,null,null,null,null,""]
[null,{"$f":"Colab!B36","v":0},null,null,null,null,null,null,null,null,null,null,"",null,null,null,null,null,""]
[null,{"$f":"Colab!B37","v":0},null,null,null,null,null,null,null,null,null,null,"",null,null,null,null,null,""]
[null,{"$f":"Colab!B38","v":0},null,null,null,null,null,null,null,null,null,null,"",null,null,null,null,null,""]
[null,{"$f":"Colab!B39","v":0},null,null,null,null,null,null,null,null,null,null,"",null,null,null,null,null,""]
[null,{"$f":"Colab!B40","v":0},null,null,null,null,null,null,null,null,null,null,"",null,null,null,null,null,""]
[null,{"$f":"Colab!B41","v":0},null,null,null,null,null,null,null,null,null,null,"",null,null,null,null,null,""]
[null,{"$f":"Colab!B42","v":0},null,null,null,null,null,null,null,null,null,null,"",null,null,null,null,null,""]
[null,{"$f":"Colab!B43","v":0},null,null,null,null,null,null,null,null,null,null,"",null,null,null,null,null,""]
[null,{"$f":"Colab!B44","v":0},null,null,null,null,null,null,null,null,null,null,"",null,null,null,null,null,""]
[null,{"$f":"Colab!B45","v":0},null,null,null,null,null,null,null,null,null,null,"",null,null,null,null,null,""]
[null,{"$f":"Colab!B46","v":0},null,null,null,null,null,null,null,null,null,null,"",null,null,null,null,null,""]
[null,{"$f":"Colab!B47","v":0},null,null,null,null,null,null,null,null,null,null,"",null,null,null,null,null,""]
[null,{"$f":"Colab!B48","v":0},null,null,null,null,null,null,null,null,null,null,"",null,null,null,null,null,""]
[null,{"$f":"Colab!B49","v":0},null,null,null,null,null,null,null,null,null,null,"",null,null,null,null,null,""]
[null,{"$f":"Colab!B50","v":0},null,null,null,null,null,null,null,null,null,null,"",null,null,null,null,null,""]
[null,{"$f":"Colab!B51","v":0},null,null,null,null,null,null,null,null,null,null,"",null,null,null,null,null,""]
[null,{"$f":"Colab!B52","v":0},null,null,null,null,null,null,null,null,null,null,"",null,null,null,null,null,""]
[null,{"$f":"Colab!B53","v":0},null,null,null,null,null,null,null,null,null,null,"",null,null,null,null,null,""]
[null,{"$f":"Colab!B54","v":0},null,null,null,null,null,null,null,null,null,null,"",null,null,null,null,null,""]
[null,{"$f":"Colab!B55","v":0},null,null,null,null,null,null,null,null,null,null,"",null,null,null,null,null,""]
[null,{"$f":"Colab!B56","v":0},null,null,null,null,null,null,null,null,null,null,"",null,null,null,null,null,""]
[null,{"$f":"Colab!B57","v":0},null,null,null,null,null,null,null,null,null,null,"",null,null,null,null,null,""]
[null,{"$f":"Colab!B58","v":0},null,null,null,null,null,null,null,null,null,null,"",null,null,null,null,null,""]
[null,{"$f":"Colab!B59","v":0},null,null,null,null,null,null,null,null,null,null,"",null,null,null,null,null,""]
[null,{"$f":"Colab!B60","v":0},null,null,null,null,null,null,null,null,null,null,"",null,null,null,null,null,""]
[null,{"$f":"Colab!B61","v":0},null,null,null,null,null,null,null,null,null,null,"",null,null,null,null,null,""]
[null,{"$f":"Colab!B62","v":0},null,null,null,null,null,null,null,null,null,null,"",null,null,null,null,null,""]
[null,{"$f":"Colab!B63","v":0},null,null,null,null,null,null,null,null,null,null,"",null,null,null,null,null,""]
[]
[null,null,{"$f":"AVERAGEIF(C14:C63,\">0\")","v":2.6666666666666665},{"$f":"AVERAGEIF(D14:D63,\">0\")","v":3},3,2.6666666666666665,4.333333333333333,3,4.333333333333333,4.333333333333333,4,4.333333333333333]

{"sheet":"Dash1","index":4,"n_rows":26,"n_cols":18,"rows_kept":26,"cut":false,"hidden":false,"merged":[[14,17,17,20],[10,1,10,2],[10,3,10,20],[12,4,12,7]]}
[]
[]
[]
[]
[]
[]
[]
[]
[]
[]
[null,"Empresa:",null,{"$f":"Menu!G26","v":"Empresa ABCDE"}]
[]
[null,"Selecione o Colaborador:",null,null,"Paulo Vitor"]
[]
[null,{"$f":"Criterios!B14","v":"Liderança"},{"$f":"VLOOKUP($E$13,Aval!$B$14:$L$63,D15,0)","v":2},2,{"$f":"Dash2!$C$25","v":3.5666666666666664},null,null,null,null,null,null,null,null,null,null,null,null,{"$f":"IF(C25<Dash2!C25,\"Atenção. A média do colaborador está abaixo da média da empresa.\",\"Parabéns! A média do colaborador está igual ou acima da média da empresa.\")","v":"Atenção. A média do colaborador está abaixo da média da empresa."}]
[null,{"$f":"Criterios!B15","v":"Assiduidade"},{"$f":"VLOOKUP($E$13,Aval!$B$14:$L$63,D16,0)","v":2},3,{"$f":"Dash2!$C$25","v":3.5666666666666664}]
[null,{"$f":"Criterios!B16","v":"Flexibilidade"},{"$f":"VLOOKUP($E$13,Aval!$B$14:$L$63,D17,0)","v":2},4,{"$f":"Dash2!$C$25","v":3.5666666666666664}]
[null,{"$f":"Criterios!B17","v":"Disponibilidade"},{"$f":"VLOOKUP($E$13,Aval!$B$14:$L$63,D18,0)","v":1},5,{"$f":"Dash2!$C$25","v":3.5666666666666664}]
[null,{"$f":"Criterios!B18","v":"Integração"},{"$f":"VLOOKUP($E$13,Aval!$B$14:$L$63,D19,0)","v":5},6,{"$f":"Dash2!$C$25","v":3.5666666666666664}]
[null,{"$f":"Criterios!B19","v":"Organização"},{"$f":"VLOOKUP($E$13,Aval!$B$14:$L$63,D20,0)","v":2},7,{"$f":"Dash2!$C$25","v":3.5666666666666664}]
[null,{"$f":"Criterios!B20","v":"Ética"},{"$f":"VLOOKUP($E$13,Aval!$B$14:$L$63,D21,0)","v":4},8,{"$f":"Dash2!$C$25","v":3.5666666666666664}]
[null,{"$f":"Criterios!B21","v":"Produtividade"},{"$f":"VLOOKUP($E$13,Aval!$B$14:$L$63,D22,0)","v":4},9,{"$f":"Dash2!$C$25","v":3.5666666666666664}]
[null,{"$f":"Criterios!B22","v":"Qualidade"},{"$f":"VLOOKUP($E$13,Aval!$B$14:$L$63,D23,0)","v":3},10,{"$f":"Dash2!$C$25","v":3.5666666666666664}]
[null,{"$f":"Criterios!B23","v":"Aptidão Técnica"},{"$f":"VLOOKUP($E$13,Aval!$B$14:$L$63,D24,0)","v":3},11,{"$f":"Dash2!$C$25","v":3.5666666666666664}]
[null,null,{"$f":"AVERAGE(C15:C24)","v":2.8}]
[null,"Ano Ant.",{"$f":"VLOOKUP($E$13,Aval!$B$14:$O$63,D26,0)","v":3},14]

{"sheet":"Dash2","index":5,"n_rows":25,"n_cols":5,"rows_kept":25,"cut":false,"hidden":false,"merged":[[10,1,10,2],[10,3,10,20]]}
[]
[]
[]
[]
[]
[]
[]
[]
[]
[]
[null,"Empresa:",null,{"$f":"Menu!G26","v":"Empresa ABCDE"}]
[]
[]
[]
[null,{"$f":"Criterios!B14","v":"Liderança"},{"$f":"TRANSPOSE(Aval!C65:L65)","v":2.6666666666666665},2,{"$f":"$C$25","v":3.5666666666666664}]
[null,{"$f":"Criterios!B15","v":"Assiduidade"},3,3,{"$f":"$C$25","v":3.5666666666666664}]
[null,{"$f":"Criterios!B16","v":"Flexibilidade"},3,4,3.5666666666666664]
[null,{"$f":"Criterios!B17","v":"Disponibilidade"},2.6666666666666665,5,3.5666666666666664]
[null,{"$f":"Criterios!B18","v":"Integração"},4.333333333333333,6,3.5666666666666664]
[null,{"$f":"Criterios!B19","v":"Organização"},3,7,3.5666666666666664]
[null,{"$f":"Criterios!B20","v":"Ética"},4.333333333333333,8,3.5666666666666664]
[null,{"$f":"Criterios!B21","v":"Produtividade"},4.333333333333333,9,3.5666666666666664]
[null,{"$f":"Criterios!B22","v":"Qualidade"},4,10,3.5666666666666664]
[null,{"$f":"Criterios!B23","v":"Aptidão Técnica"},4.333333333333333,11,3.5666666666666664]
[null,null,{"$f":"AVERAGE(C15:C24)","v":3.5666666666666664}]

{"sheet":"Instruções","index":6,"n_rows":0,"n_cols":0,"rows_kept":0,"cut":false,"hidden":false,"merged":[]}

{"sheet":"Notas","index":7,"n_rows":6,"n_cols":3,"rows_kept":6,"cut":false,"hidden":false,"merged":[[4,2,4,4],[5,2,5,4],[0,0,0,4],[1,2,1,4],[2,2,2,4],[3,2,3,4]]}
["CRITÉRIOS DE AVALIAÇÃO"]
[5,"Marcante","Acima de qualquer expectativa; funcionário é um exemplo a ser seguido."]
[4,"Excelente","Sabe o que precisa para desempenhar seu papel com eficiência."]
[3,"Bom","Precisa de motivação da equipe para cumprir com seu papel."]
[2,"Regular","Não consegue motivar-se por conta própria."]
[1,"Ruim","Abaixo de qualquer expectativa; precisa de acompanhamento constante."]